bitfinex/quotes_ETHUSD_20250222
["timestamp","ask_amount","ask_price","bid_price","bid_amount"]
[1740262511149,0.7914,2776.4,2776.0,1.6233043]
[1740262511344,4.39321,2776.4,2776.0,2.27579877]
[1740262512740,0.8191,2776.9,2776.1,4.38058]
[1740262513087,3.60168,2776.5,2776.1,0.7785]
[1740262513262,3.60168,2776.5,2776.1,2.03298892]
[1740262513570,3.63819109,2776.5,2776.1,2.03298892]
[1740262513811,0.03651109,2776.5,2776.1,2.03298892]
[1740262514367,0.03651109,2776.5,2776.1,5.63515892]
[1740262514670,0.03651109,2776.5,2776.2,1.6233043]
[1740262514967,3.60201,2776.3,2776.1,1.51048892]
[1740262515448,0.03441489,2776.2,2776.1,0.256]
[1740262515769,4.39122,2776.5,2776.1,1.0477]
[1740262516148,0.03645573,2776.4,2776.1,1.0477]
[1740262516350,0.03645573,2776.4,2776.1,0.256]
[1740262516557,3.60192,2776.3,2776.0,5.646]
[1740262516751,3.60192,2776.3,2776.0,6.45210043]
[1740262517676,3.60171,2776.5,2776.1,0.7917]
[1740262518174,0.03645573,2776.4,2776.1,0.7917]
[1740262519544,0.03645573,2776.4,2776.2,1.6233043]
[1740262519780,0.7895,2777.0,2776.2,1.6233043]
[1740262520070,3.60149,2776.7,2776.3,0.60171343]
[1740262520460,7.20301,2776.7,2776.3,0.60171343]
[1740262521452,3.60149,2776.7,2776.3,0.60171343]
[1740262521654,3.60149,2776.7,2776.4,0.7917]
[1740262522678,3.6014,2776.7,2776.4,2.4150043]
[1740262522881,3.6014,2776.7,2776.5,0.30167177]
[1740262523684,3.60152,2776.6,2776.5,0.30167177]
[1740262523879,3.60178,2776.4,2776.2,0.73827173]
[1740262524180,3.60204,2776.2,2776.1,0.256]
[1740262525476,3.60217,2776.1,2776.0,5.646]
[1740262525878,3.60217,2776.1,2776.0,5.39]
[1740262527493,4.39167,2776.1,2776.0,5.39]
[1740262528289,3.60288,2775.6,2775.3,0.256]
[1740262528678,3.60256,2775.8,2775.3,0.256]
[1740262528874,3.60256,2775.8,2775.4,1.6233043]
[1740262529076,0.7895,2776.1,2775.6,1.6233043]
[1740262529382,4.39177,2776.1,2775.6,2.4320043]
[1740262529567,3.60232,2776.0,2775.6,2.4320043]
[1740262530987,3.60209,2776.2,2775.6,2.4320043]
[1740262531189,4.40744,2776.3,2775.6,6.99850473]
[1740262531396,3.60206,2776.2,2775.6,6.0347243]
[1740262531687,3.60206,2776.2,2775.7,3.60264]
[1740262531897,3.60206,2776.2,2775.6,6.0347243]
[1740262532308,0.8054,2776.3,2775.6,6.0347243]
[1740262532501,4.40732,2776.3,2775.8,1.6233043]
[1740262532689,4.40732,2776.3,2775.7,3.60269]
[1740262533679,0.8054,2776.3,2775.8,3.60251]
[1740262533877,0.8054,2776.3,2775.7,3.60269]
[1740262534496,4.40742,2776.3,2775.7,3.60269]
[1740262535289,3.60208,2776.2,2775.7,3.60269]
[1740262537502,0.8054,2776.3,2775.7,4.85283002]
[1740262538470,4.40739,2776.3,2775.7,4.85283002]
[1740262538867,0.8054,2776.3,2775.6,0.8087]
[1740262539106,3.60238,2776.0,2775.4,8.99302]
[1740262539685,7.20481,2776.0,2775.4,8.99302]
[1740262540013,3.60238,2776.0,2775.4,8.99302]
[1740262540216,7.20477,2776.0,2775.4,8.99302]
[1740262540514,7.20477,2776.0,2775.6,0.72946726]
[1740262540679,3.60238,2776.0,2775.6,0.72946726]
[1740262541195,7.2048,2776.0,2775.6,0.72946726]
[1740262543116,3.60238,2776.0,2775.6,0.72946726]
[1740262543315,4.41375,2775.9,2775.6,0.98546726]
[1740262546494,3.60295,2775.5,2775.4,5.39]
[1740262546700,3.60295,2775.5,2775.2,5.39]
[1740262547513,3.6027,2775.7,2775.2,5.39]
[1740262547725,3.60284,2775.6,2775.2,5.39]
[1740262548936,0.7526,2775.5,2775.2,5.39]
[1740262551734,3.60321,2775.3,2775.2,5.39]
[1740262552644,3.60321,2775.3,2774.7,5.39]
[1740262552645,3.60355,2775.1,2774.7,5.39]
[1740262552839,3.60364,2775.0,2774.7,5.646]
[1740262553410,0.7526,2775.2,2774.7,5.646]
[1740262553411,4.35604,2775.2,2774.8,1.62263307]
[1740262555840,3.60349,2775.1,2774.8,1.62263307]
[1740262557740,0.7526,2775.2,2774.8,1.62263307]
[1740262557940,3.60347,2775.1,2774.8,1.62263307]
[1740262558242,3.60367,2775.0,2774.8,1.62263307]
[1740262559647,3.60363,2775.0,2774.8,1.62263307]
[1740262560033,7.20703,2775.1,2774.8,1.62263307]
[1740262560548,3.60347,2775.1,2774.8,1.62263307]
[1740262560922,7.20703,2775.1,2774.8,1.62263307]
[1740262561442,3.60347,2775.1,2774.8,1.62263307]
[1740262561642,7.20703,2775.1,2774.8,1.62263307]
[1740262562123,3.60347,2775.1,2774.8,1.62263307]
[1740262563145,7.20703,2775.1,2774.8,1.62263307]
[1740262563352,3.60347,2775.1,2774.8,1.62263307]
[1740262563645,7.20706,2775.1,2774.8,1.62263307]
[1740262564013,3.60347,2775.1,2774.8,1.62263307]
[1740262564947,7.20704,2775.1,2774.8,1.62263307]
[1740262565328,3.60347,2775.1,2774.8,1.62263307]
[1740262566214,4.039077,2775.1,2774.8,1.62263307]
[1740262567753,4.039077,2775.1,2774.6,1.62263307]
[1740262568615,3.60347,2775.1,2774.6,1.62263307]
[1740262569625,7.20702,2775.1,2774.6,1.62263307]
[1740262570333,0.7526,2775.2,2774.5,5.39]
[1740262570527,0.7551,2774.7,2774.2,1.62263307]
[1740262570767,3.60435,2774.5,2774.2,1.62263307]
[1740262574872,0.8018,2774.4,2774.2,1.62263307]
[1740262575463,3.60405,2774.7,2774.2,1.62263307]
[1740262575464,0.8018,2774.9,2774.3,0.7957]
[1740262575669,3.60348,2775.1,2774.7,1.62263307]
[1740262575869,3.60368,2775.0,2774.7,1.62263307]
[1740262576066,3.0,2775.1,2774.7,1.62263307]
[1740262576246,3.740523,2775.1,2774.7,1.62263307]
[1740262576430,7.344023,2775.1,2774.7,1.62263307]
[1740262576834,3.60372,2775.0,2774.7,1.62263307]
[1740262577654,7.344023,2775.1,2774.5,1.62263307]
[1740262577655,4.40556,2774.9,2774.5,1.62263307]
[1740262577837,3.60386,2774.8,2774.5,1.62263307]
[1740262578772,4.404789,2774.8,2774.2,5.39]
[1740262578957,3.60401,2774.7,2774.2,5.39]
[1740262579460,3.60401,2774.7,2774.2,8.73778022]
[1740262580246,3.8018,2774.9,2774.2,8.73778022]
[1740262580451,3.8018,2774.9,2774.2,12.34241022]
[1740262580773,3.60393,2774.8,2774.2,12.34241022]
[1740262580973,7.20788,2774.8,2774.2,12.34241022]
[1740262581659,3.60393,2774.8,2774.2,14.04230424]
[1740262582572,3.8018,2774.9,2774.2,14.04230424]
[1740262582876,7.4056,2774.9,2774.2,14.04230424]
[1740262583061,3.60386,2774.8,2774.2,14.04230424]
[1740262583264,7.20783,2774.8,2774.2,14.04230424]
[1740262583452,3.60386,2774.8,2774.2,14.04230424]
[1740262583774,3.60386,2774.8,2774.2,5.39]
[1740262583775,3.60408,2774.7,2774.2,5.39]
[1740262584140,3.8018,2774.9,2774.2,5.39]
[1740262584341,3.8018,2774.9,2774.3,3.60443]
[1740262584572,7.40557,2774.9,2774.2,12.34230022]
[1740262584869,3.604,2774.7,2774.2,8.73778022]
[1740262586056,3.604,2774.7,2774.2,8.99378022]
[1740262586855,3.604,2774.7,2774.2,5.646]
[1740262587779,0.8018,2774.5,2774.2,5.646]
[1740262588476,0.8018,2774.5,2774.2,5.39]
[1740262588677,3.60476,2774.2,2773.9,5.646]
[1740262588977,3.6044,2774.4,2773.9,5.646]
[1740262589280,3.60452,2774.3,2773.9,5.646]
[1740262589849,3.60452,2774.3,2773.9,5.39]
[1740262590045,0.8018,2774.5,2773.9,5.39]
[1740262590046,3.60485,2774.1,2773.9,5.39]
[1740262590241,3.6049,2774.0,2773.9,5.39]
[1740262590468,4.40475,2774.1,2773.9,5.39]
[1740262590646,0.7999,2774.1,2773.9,5.39]
[1740262591066,3.60403,2774.7,2774.0,0.8255]
[1740262591067,3.7999,2774.4,2774.0,0.8255]
[1740262591259,3.0,2774.4,2774.0,4.43036]
[1740262591455,3.0,2774.5,2774.0,0.8255]
[1740262591784,0.7999,2774.6,2774.0,4.43036]
[1740262591943,3.7999,2774.6,2774.0,4.43036]
[1740262592268,3.7999,2774.6,2774.0,0.8255]
[1740262592472,0.7999,2774.6,2773.9,5.39]
[1740262592679,3.60437,2774.5,2773.9,5.39]
[1740262593669,3.60452,2774.3,2773.9,5.39]
[1740262595603,3.60452,2774.3,2773.3,5.39]
[1740262595604,3.60542,2773.6,2773.3,5.39]
[1740262595883,3.60563,2773.5,2773.0,8.4041]
[1740262598682,3.60542,2773.6,2773.0,7.363]
[1740262598683,0.7807,2773.6,2773.0,7.363]
[1740262598857,3.60577,2773.4,2773.0,7.363]
[1740262599186,7.21132,2773.5,2773.0,7.363]
[1740262599483,3.60565,2773.5,2773.0,7.363]
[1740262599690,3.60571,2773.4,2773.0,7.363]
[1740262601090,3.7807,2773.6,2773.0,7.363]
[1740262601258,7.38616,2773.6,2773.0,10.71078022]
[1740262601582,3.60556,2773.5,2773.0,10.71078022]
[1740262601886,3.60563,2773.5,2773.0,7.363]
[1740262602088,3.7807,2773.6,2773.0,7.363]
[1740262602294,7.38625,2773.6,2773.0,7.363]
[1740262603764,3.7807,2773.6,2773.0,7.363]
[1740262603966,3.60556,2773.5,2773.0,7.363]
[1740262604597,7.38612,2773.6,2773.0,7.363]
[1740262606197,3.7807,2773.6,2773.0,7.363]
[1740262606390,3.0,2773.6,2773.1,3.60607]
[1740262607599,0.7807,2773.8,2773.3,3.60572]
[1740262607815,4.38587,2773.8,2773.2,4.39093]
[1740262607998,4.38569,2774.0,2773.3,3.6058]
[1740262608201,4.38569,2774.0,2773.4,4.39069]
[1740262608516,4.38569,2774.0,2773.4,8.53811922]
[1740262609013,0.7807,2774.0,2773.5,3.60544]
[1740262609314,3.0,2774.1,2773.5,3.86146]
[1740262610685,3.0,2774.1,2773.5,7.46693]
[1740262610880,3.0,2774.1,2773.5,5.64040592]
[1740262611085,3.0,2774.1,2773.5,9.24586592]
[1740262611304,3.0,2774.1,2773.8,0.8183]
[1740262611520,3.60445,2774.4,2773.8,0.8183]
[1740262611521,3.0,2774.2,2773.8,0.8183]
[1740262612419,6.60464,2774.2,2773.8,0.8183]
[1740262612616,3.0,2774.2,2773.8,0.8183]
[1740262613422,6.60467,2774.2,2773.8,0.8183]
[1740262613788,3.60477,2774.1,2773.8,0.8183]
[1740262616220,3.0,2774.2,2773.8,0.8183]
[1740262616388,6.60468,2774.2,2773.8,0.8183]
[1740262616821,3.60478,2774.1,2773.8,0.8183]
[1740262617204,3.60459,2774.3,2773.8,4.42334]
[1740262618521,3.0,2774.2,2773.8,0.8183]
[1740262618714,6.60464,2774.2,2773.8,0.8183]
[1740262619727,4.41298,2774.4,2773.8,0.8183]
[1740262619728,3.0,2774.3,2773.8,0.8183]
[1740262620024,6.60454,2774.3,2773.8,0.8183]
[1740262620822,3.60467,2774.2,2773.8,0.8183]
[1740262621925,3.0,2774.3,2773.8,5.226328]
[1740262622105,3.0,2774.3,2773.9,4.41822]
[1740262622307,3.60438,2774.4,2773.9,4.41822]
[1740262622508,3.6042,2774.6,2773.9,4.41822]
[1740262622509,3.60412,2774.6,2773.9,0.8132]
[1740262622706,3.6044,2774.4,2773.9,0.8132]
[1740262622912,3.6044,2774.4,2773.9,2.56961182]
[1740262623228,3.60417,2774.6,2774.0,4.41801]
[1740262623435,3.60393,2774.8,2774.3,0.8132]
[1740262623725,3.60399,2774.7,2774.3,0.8132]
[1740262624429,3.60393,2774.8,2774.3,1.0692]
[1740262624631,3.60399,2774.7,2774.3,1.0692]
[1740262626616,3.60393,2774.8,2774.3,1.0692]
[1740262626815,3.60393,2774.8,2774.3,1.56317726]
[1740262627209,3.604,2774.7,2774.3,1.56317726]
[1740262627700,3.60464,2774.2,2774.1,5.39]
[1740262628031,3.60451,2774.3,2774.1,5.39]
[1740262631239,3.60451,2774.3,2774.0,1.0692]
[1740262638252,3.60464,2774.2,2774.0,0.256]
[1740262639141,3.60477,2774.1,2774.0,0.256]
[1740262663338,3.60477,2774.1,2773.9,1.62388486]
[1740262664670,3.60477,2774.1,2773.7,6.2094]
[1740262664671,0.824,2774.4,2773.7,6.2094]
[1740262664871,3.60516,2773.8,2773.7,5.39]
[1740262665075,4.42898,2774.0,2773.7,5.39]
[1740262665672,8.03396,2774.0,2773.7,5.39]
[1740262666837,8.03396,2774.0,2773.5,8.05048486]
[1740262667367,4.42898,2774.0,2773.5,8.05048486]
[1740262667532,3.60498,2774.0,2773.7,1.62388486]
[1740262680187,0.7766,2773.9,2773.7,1.62388486]
[1740262685007,3.60498,2774.0,2773.7,1.62388486]
[1740262685375,4.38148,2774.1,2773.7,1.62388486]
[1740262686201,0.7766,2774.1,2773.7,1.62388486]
[1740262686503,4.38144,2774.1,2773.7,1.62388486]
[1740262688306,0.7766,2774.1,2773.7,1.62388486]
[1740262688803,4.38138,2774.1,2773.7,1.62388486]
[1740262689410,3.0,2774.3,2773.9,1.62388486]
[1740262689576,0.8281,2774.4,2774.1,1.62388486]
[1740262690012,3.8281,2774.4,2774.1,1.62388486]
[1740262690210,3.0,2774.4,2774.1,1.62388486]
[1740262697220,3.8281,2774.6,2774.2,0.8275]
[1740262697401,0.8281,2774.6,2774.2,0.8275]
[1740262697803,4.43229,2774.6,2774.2,0.8275]
[1740262699019,4.43229,2774.6,2774.1,1.62388486]
[1740262699229,4.43229,2774.6,2774.1,5.22863486]
[1740262699414,4.43229,2774.6,2774.1,1.62388486]
[1740262702845,0.8222,2774.8,2774.3,1.62388486]
[1740262703048,3.60414,2774.6,2774.1,6.37321635]
[1740262703493,0.8222,2774.8,2774.1,6.37321635]
[1740262703494,3.6041,2774.7,2774.1,6.37321635]
[1740262703691,3.60412,2774.6,2774.1,2.76851635]
[1740262705347,7.20835,2774.6,2774.1,2.76851635]
[1740262705552,7.20835,2774.6,2774.2,0.72009064]
[1740262705754,6.6035,2775.1,2774.0,4.43239]
[1740262705755,0.8222,2774.4,2774.0,0.8275]
[1740262705924,4.4267,2774.4,2774.1,0.256]
[1740262709158,0.8222,2774.4,2774.0,1.62388486]
[1740262709466,3.60451,2774.3,2773.9,5.39]
[1740262709647,3.60451,2774.3,2773.9,7.45026649]
[1740262709959,3.60451,2774.3,2774.0,1.62388486]
[1740262713654,3.60451,2774.3,2773.9,7.45026649]
[1740262726371,7.2091,2774.3,2773.9,7.45026649]
[1740262726577,7.20909,2774.3,2773.9,7.45026649]
[1740262727574,3.60451,2774.3,2773.9,7.45026649]
[1740262730671,7.2091,2774.3,2773.9,7.45026649]
[1740262732975,3.60475,2774.2,2773.9,7.45026649]
[1740262737390,3.60475,2774.2,2773.9,5.39]
[1740262740576,3.60451,2774.3,2773.9,5.39]
[1740262740777,3.60477,2774.1,2773.9,5.39]
[1740262743274,7.20913,2774.3,2773.9,5.39]
[1740262743446,3.60466,2774.2,2773.9,5.39]
[1740262743648,3.60451,2774.3,2773.9,5.39]
[1740262751284,4.42665,2774.4,2773.9,5.39]
[1740262751885,0.8222,2774.4,2773.9,8.99494]
[1740262752053,6.60405,2774.7,2773.9,8.99494]
[1740262752054,3.60401,2774.7,2774.2,1.62388486]
[1740262752254,3.0,2774.6,2774.2,5.22842486]
[1740262752978,3.0,2774.6,2774.2,7.01388486]
[1740262754120,3.0,2774.6,2774.3,0.8229]
[1740262754249,4.15337,2775.2,2774.3,0.8229]
[1740262754250,0.7832,2775.0,2774.4,1.62388486]
[1740262754599,0.7832,2775.1,2774.6,1.62388486]
[1740262754800,3.6037,2775.0,2774.6,1.62388486]
[1740262755357,0.7832,2775.1,2774.6,5.22799486]
[1740262755553,4.38668,2775.1,2774.6,5.22799486]
[1740262756450,4.38668,2775.1,2774.6,1.62388486]
[1740262756650,4.38672,2775.1,2774.6,1.62388486]
[1740262758895,4.38672,2775.1,2774.6,5.22799486]
[1740262759399,0.7787,2775.4,2774.7,3.60388]
[1740262759598,3.60335,2775.2,2774.7,3.60388]
[1740262759802,0.7787,2775.4,2774.8,2.45308486]
[1740262760003,4.38188,2775.4,2774.8,6.05683486]
[1740262760204,4.38188,2775.4,2774.9,0.96607149]
[1740262760889,0.7787,2775.4,2774.9,0.96607149]
[1740262761202,4.3818,2775.4,2774.9,0.96607149]
[1740262762275,7.985,2775.4,2774.9,0.96607149]
[1740262762604,3.60324,2775.3,2774.9,0.96607149]
[1740262762809,3.60324,2775.3,2775.0,0.70229264]
[1740262764077,3.60324,2775.3,2774.8,2.45308486]
[1740262766511,3.60338,2775.2,2774.8,2.45308486]
[1740262774433,3.60349,2775.1,2774.8,2.45308486]
[1740262774603,3.60349,2775.1,2774.9,0.256]
[1740262774805,3.60338,2775.2,2774.9,0.256]
[1740262775128,7.20681,2775.2,2774.9,0.256]
[1740262775332,3.60338,2775.2,2774.8,2.70908486]
[1740262775632,3.60338,2775.2,2774.8,3.47292062]
[1740262775934,3.6035,2775.1,2774.8,3.47292062]
[1740262776305,3.60386,2774.8,2774.7,5.39]
[1740262776934,3.60386,2774.8,2774.1,0.256]
[1740262776935,7.93786,2774.8,2774.1,0.256]
[1740262777109,3.60464,2774.2,2774.1,0.256]
[1740262781941,3.60464,2774.2,2774.0,7.363]
[1740262783640,3.60454,2774.3,2774.0,7.363]
[1740262785318,3.60454,2774.3,2774.0,8.98688486]
[1740262788241,7.99289,2774.4,2774.0,8.98688486]
[1740262788438,0.8251,2774.7,2774.2,1.62388486]
[1740262788638,3.0,2775.0,2774.4,1.62388486]
[1740262788639,0.8251,2775.0,2774.4,1.62388486]
[1740262788818,3.60374,2774.9,2774.4,1.62388486]
[1740262789020,0.8251,2775.0,2774.4,1.62388486]
[1740262789522,3.60374,2774.9,2774.4,1.62388486]
[1740262789720,3.60388,2774.8,2774.4,1.62388486]
[1740262789917,3.6041,2774.7,2774.4,1.62388486]
[1740262790125,4.407078,2774.9,2774.4,1.62388486]
[1740262792712,4.407008,2774.9,2774.4,1.62388486]
[1740262792913,0.803248,2774.9,2774.4,1.62388486]
[1740262793443,3.0,2774.9,2774.4,1.62388486]
[1740262793841,0.7929,2775.2,2774.6,1.62388486]
[1740262794047,3.60352,2775.1,2774.6,1.62388486]
[1740262794248,3.60352,2775.1,2774.6,1.87988486]
[1740262795249,3.6033,2775.3,2774.9,0.7663]
[1740262796256,7.20758,2774.9,2774.6,0.256]
[1740262796462,3.60377,2774.9,2774.6,0.256]
[1740262797163,3.60397,2774.8,2774.6,0.256]
[1740262797351,3.60377,2774.9,2774.6,0.256]
[1740262802169,3.60387,2774.8,2774.6,0.256]
[1740262802336,4.39659,2775.0,2774.6,0.256]
[1740262802736,3.60369,2775.0,2774.6,0.256]
[1740262804371,3.60354,2775.1,2774.6,0.256]
[1740262804571,0.7929,2775.4,2774.9,0.7663]
[1740262804770,3.60338,2775.2,2774.9,0.7663]
[1740262804976,3.6036,2775.0,2774.9,0.7663]
[1740262805471,3.60321,2775.3,2774.9,0.7663]
[1740262805774,3.60322,2775.3,2774.9,0.7663]
[1740262807370,3.60314,2775.4,2774.9,0.7663]
[1740262808573,7.20632,2775.4,2774.9,1.72610549]
[1740262809977,3.60314,2775.4,2774.9,1.72610549]
[1740262810944,7.20631,2775.4,2774.9,1.72610549]
[1740262811274,3.60314,2775.4,2774.9,1.72610549]
[1740262812475,7.20633,2775.4,2774.9,1.72610549]
[1740262812981,3.60314,2775.4,2774.9,1.72610549]
[1740262813345,7.20631,2775.4,2774.9,1.72610549]
[1740262813579,3.60314,2775.4,2774.9,0.7663]
[1740262814480,7.20632,2775.4,2774.9,0.7663]
[1740262814778,3.60314,2775.4,2774.9,0.7663]
[1740262814977,7.20632,2775.4,2774.9,0.7663]
[1740262816784,3.60314,2775.4,2774.9,0.7663]
[1740262817151,3.60322,2775.3,2774.9,0.7663]
[1740262818570,3.60314,2775.4,2774.9,0.7663]
[1740262818771,7.20633,2775.4,2774.9,0.7663]
[1740262819783,3.60323,2775.3,2774.9,0.7663]
[1740262824195,3.60314,2775.4,2774.9,0.7663]
[1740262824399,3.60334,2775.2,2774.9,0.7663]
[1740262831175,0.7929,2775.6,2775.0,3.60359]
[1740262831382,0.7929,2775.6,2775.1,0.7711]
[1740262831584,3.60287,2775.6,2775.1,0.7711]
[1740262832304,0.0680693,2775.5,2775.1,0.7711]
[1740262834004,3.6710493,2775.5,2775.1,0.7711]
[1740262836880,0.0680693,2775.5,2775.1,0.7711]
[1740262837081,3.60291,2775.6,2775.1,0.7711]
[1740262837411,0.06796879,2775.4,2775.1,0.7711]
[1740262837589,0.0680808,2775.5,2775.1,1.747569]
[1740262840909,3.6710608,2775.5,2775.1,0.7711]
[1740262843209,0.0680808,2775.5,2775.1,0.7711]
[1740262843594,3.60284,2775.6,2775.1,0.7711]
[1740262847117,0.06749151,2775.5,2775.1,0.7711]
[1740262849888,3.60295,2775.5,2775.1,0.7711]
[1740262850202,0.0673795,2775.4,2775.1,0.7711]
[1740262865534,0.0673795,2775.4,2775.2,0.8224]
[1740262865738,0.8006,2775.8,2775.2,0.8224]
[1740262866031,0.06216827,2775.3,2775.2,4.42565]
[1740262866236,3.60255,2775.9,2775.2,4.42565]
[1740262866409,4.41535,2776.0,2775.2,6.04953486]
[1740262866613,4.41535,2776.0,2775.3,5.12813149]
[1740262866840,8.01775,2776.0,2775.3,5.12813149]
[1740262867799,3.60235,2776.0,2775.4,6.30435486]
[1740262868422,0.06294963,2775.9,2775.4,6.30435486]
[1740262868930,0.06294963,2775.9,2775.4,6.30428486]
[1740262869131,0.06294963,2775.9,2775.5,0.70068864]
[1740262869634,0.06294963,2775.9,2775.6,0.8081]
[1740262875716,3.60222,2776.1,2775.6,0.8081]
[1740262875916,0.06166795,2775.8,2775.6,0.8081]
[1740262876118,3.60222,2776.1,2775.6,0.8081]
[1740262876317,0.06155597,2775.7,2775.6,0.8081]
[1740262876550,3.60222,2776.1,2775.6,1.43709249]
[1740262876756,0.06155597,2775.7,2775.6,0.8081]
[1740262876920,3.60222,2776.1,2775.6,0.8081]
[1740262877124,0.06208558,2775.7,2775.6,0.8081]
[1740262877325,3.60222,2776.1,2775.6,0.8081]
[1740262877622,0.06208558,2775.7,2775.6,0.8081]
[1740262877956,0.06211918,2775.7,2775.6,1.43709249]
[1740262878152,3.60212,2776.2,2775.6,1.43709249]
[1740262878364,0.06215279,2775.7,2775.6,0.8081]
[1740262878654,3.60212,2776.2,2775.6,0.8081]
[1740262878842,0.06215279,2775.7,2775.6,0.8081]
[1740262879042,3.60212,2776.2,2775.6,0.8081]
[1740262879260,0.06215279,2775.7,2775.6,0.8081]
[1740262879549,0.06215279,2775.7,2775.6,1.43709249]
[1740262879743,3.60226,2776.1,2775.6,1.43709249]
[1740262879941,3.6023,2776.0,2775.6,0.8081]
[1740262880418,0.06239401,2775.9,2775.6,0.8081]
[1740262882557,0.7977,2776.1,2775.6,0.8081]
[1740262882752,0.06246046,2775.8,2775.6,0.8081]
[1740262883051,0.7977,2776.1,2775.6,0.8081]
[1740262883261,0.06209848,2775.7,2775.6,0.8081]
[1740262883559,0.06209848,2775.7,2775.6,1.43709249]
[1740262883736,4.39991,2776.1,2775.6,1.43709249]
[1740262884053,0.06209848,2775.7,2775.6,0.8081]
[1740262884269,4.39991,2776.1,2775.6,0.8081]
[1740262884557,0.06196525,2775.7,2775.6,0.8081]
[1740262884754,0.06230119,2776.0,2775.6,0.8081]
[1740262884935,0.06196525,2775.7,2775.6,0.8081]
[1740262885258,3.60221,2776.1,2775.6,1.43708349]
[1740262885434,0.061971,2775.7,2775.6,0.8081]
[1740262885652,3.60221,2776.1,2775.6,0.8081]
[1740262885845,0.061971,2775.7,2775.6,0.8081]
[1740262886035,3.60221,2776.1,2775.6,0.8081]
[1740262886236,0.061971,2775.7,2775.6,0.8081]
[1740262886439,3.60221,2776.1,2775.6,1.43708349]
[1740262886632,0.061721,2775.7,2775.6,0.8081]
[1740262886856,3.60221,2776.1,2775.6,0.8081]
[1740262887058,0.061721,2775.7,2775.6,0.8081]
[1740262888275,3.60221,2776.1,2775.6,0.8081]
[1740262888447,0.061721,2775.7,2775.6,0.8081]
[1740262888773,0.05993529,2775.7,2775.6,1.43708349]
[1740262888935,3.60221,2776.1,2775.6,1.43708349]
[1740262889138,0.05783527,2776.0,2775.9,0.76]
[1740262889338,3.60197,2776.3,2775.9,0.76]
[1740262889537,0.05806512,2776.2,2775.9,0.76]
[1740262889767,3.60197,2776.3,2775.9,0.76]
[1740262889970,0.05795317,2776.1,2775.9,0.76]
[1740262890268,3.60165,2776.5,2775.9,1.735254]
[1740262890448,0.0578412,2776.0,2775.9,0.76]
[1740262890641,3.60186,2776.4,2775.9,0.76]
[1740262890841,0.0578412,2776.0,2775.9,0.76]
[1740262891072,3.60194,2776.3,2775.9,0.76]
[1740262891278,0.0578412,2776.0,2775.9,0.76]
[1740262891460,3.60194,2776.3,2775.9,1.735254]
[1740262891660,0.0578412,2776.0,2775.9,0.76]
[1740262892172,3.60194,2776.3,2775.9,0.76]
[1740262892372,0.0578412,2776.0,2775.9,0.76]
[1740262892539,3.60194,2776.3,2775.9,0.76]
[1740262892740,0.05806512,2776.2,2775.9,0.76]
[1740262892941,3.60194,2776.3,2775.9,1.735254]
[1740262893172,0.05806512,2776.2,2775.9,1.735254]
[1740262893341,3.60194,2776.3,2775.9,1.735254]
[1740262893542,0.05806512,2776.2,2775.9,1.735254]
[1740262893741,3.60194,2776.3,2775.9,1.735254]
[1740262893941,0.05808668,2776.2,2775.9,1.735254]
[1740262894143,3.60194,2776.3,2775.9,1.735254]
[1740262894465,0.05811776,2776.2,2775.9,1.735254]
[1740262894775,7.20396,2776.3,2775.9,1.735254]
[1740262894975,0.0580108,2776.1,2775.9,1.735254]
[1740262895274,7.20396,2776.3,2775.9,1.735254]
[1740262895776,0.05793797,2776.2,2775.9,1.735254]
[1740262896074,3.60194,2776.3,2775.9,1.735254]
[1740262896379,3.60194,2776.3,2776.0,0.33591389]
[1740262896675,0.05794373,2776.2,2776.0,0.33591389]
[1740262897174,0.05790095,2776.1,2776.0,0.33591389]
[1740262897364,3.60179,2776.4,2776.0,0.33591389]
[1740262897677,0.05790095,2776.1,2776.0,0.33591389]
[1740262897842,3.60179,2776.4,2776.0,0.33591389]
[1740262898044,0.05726524,2776.1,2776.0,0.33591389]
[1740262898255,3.60179,2776.4,2776.0,0.33591389]
[1740262898456,0.05726524,2776.1,2776.0,0.33591389]
[1740262898978,3.60179,2776.4,2776.0,0.33591389]
[1740262899151,0.05726524,2776.1,2776.0,0.33591389]
[1740262899477,3.60179,2776.4,2776.0,0.33591389]
[1740262899678,0.05726524,2776.1,2776.0,0.33591389]
[1740262899843,3.60179,2776.4,2776.0,0.33591389]
[1740262900046,0.05726524,2776.1,2775.9,1.735254]
[1740262900256,3.60179,2776.4,2775.9,1.735254]
[1740262900457,0.05696242,2776.0,2775.9,1.735254]
[1740262900680,3.60179,2776.4,2775.9,1.735254]
[1740262901151,0.05729829,2776.3,2775.9,1.735254]
[1740262901988,0.05729829,2776.3,2776.0,0.69615989]
[1740262911301,0.05729829,2776.3,2775.9,5.337644]
[1740262911499,0.05729829,2776.3,2775.9,1.735254]
[1740262911685,3.6017,2776.5,2775.9,1.735254]
[1740262912187,0.05686937,2776.4,2775.9,1.735254]
[1740262912388,0.05686937,2776.4,2775.9,5.337674]
[1740262918783,4.3701,2776.6,2775.9,8.940034]
[1740262919185,0.05679579,2776.5,2775.9,8.940034]
[1740262919383,0.05679579,2776.5,2776.0,4.65867189]
[1740262919729,0.05679579,2776.5,2776.0,1.05639189]
[1740262921437,3.65844579,2776.5,2776.0,1.05639189]
[1740262924488,0.05679579,2776.5,2776.0,6.44639189]
[1740262924996,0.05679579,2776.5,2776.1,3.60215]
[1740262925193,0.05679579,2776.5,2776.2,1.0482]
[1740262925400,0.05679579,2776.5,2776.3,3.6018]
[1740262925610,0.05679579,2776.5,2776.4,3.60178]
[1740262925785,0.7865,2776.9,2776.4,3.60178]